[Event "21st Open Gran Hotel Bali-B 2024"]
[Site "Benidorm"]
[Date "2024.11.30"]
[Round "2.9"]
[White "Agudo Tena, Angel"]
[Black "Paya Prats, Damian"]
[Result "1/2-1/2"]
[ECO "A41"]
[WhiteElo "1880"]
[BlackElo "1982"]
[Annotator "NA RC"]
[PlyCount "108"]
[EventDate "2024.11.26"]
[EventType "swiss"]
[EventCountry "ESP"]
[SourceTitle "playchess.com"]
[Source "ChessBase"]
[SourceQuality "1"]
[TimeControl "5400+30"]

1. d4 {[%emt 0:00:15]} g6 {[%emt 0:01:25]} 2. Bf4 {[%emt 0:02:10]} Bg7 {[%emt 0:00:18]} 3. c3 {[%emt 0:02:10]} d6 {[%emt 0:03:31]} 4. Nf3 {[%emt 0:00:53]} Nd7 {[%emt 0:00:10]} 5. e3 {[%emt 0:15:22]} c5 {[%emt 0:01:55]} 6. Bc4 {[%emt 0:03:41]} Nb6 {[%emt 0:07:34]} 7. Bxf7+ {[%emt 0:08:39]} Kxf7 {[%emt 0:00:01]} 8. dxc5 {[%emt 0:00:11]} h6 {[%emt 0:06:48]} 9. cxb6 {[%emt 0:04:29]} Qxb6 {[%emt 0:00:01]} 10. Qb3+ {[%emt 0:03:13]} Qxb3 {[%emt 0:00:21]} 11. axb3 {[%emt 0:00:07]} g5 {[%emt 0:04:07]} 12. Bg3 {[%emt 0:00:22]} Nf6 {[%emt 0:00:01]} 13. Nbd2 {[%emt 0:01:24]} Nh5 {[%emt 0:00:58]} 14. Nc4 {[%emt 0:02:27]} Nxg3 {[%emt 0:00:44]} 15. hxg3 {[%emt 0:00:01]} Bd7 {[%emt 0:04:17]} 16. O-O {[%emt 0:04:45]} b5 {[%emt 0:02:56]} 17. Ncd2 {[%emt 0:01:04]} b4 {[%emt 0:01:46]} 18. Rac1 {[%emt 0:08:57]} Rhc8 {[%emt 0:02:22]} 19. Nd4 {[%emt 0:09:03]} e5 {[%emt 0:07:04]} 20. Ne2 {[%emt 0:04:24]} a5 {[%emt 0:02:06]} 21. Nc4 {[%emt 0:03:37]} Ra6 {[%emt 0:02:14]} 22. Rfd1 {[%emt 0:00:24]} Ke7 {[%emt 0:01:11]} 23. Ra1 {[%emt 0:04:37]} Rca8 {[%emt 0:11:07]} 24. Rd2 {[%emt 0:05:26]} Be6 {[%emt 0:09:27]} 25. e4 {[%emt 0:00:21]} a4 {[%emt 0:03:03]} 26. Rad1 {[%emt 0:02:27]} axb3 {[%emt 0:10:00]} 27. Nxd6 {[%emt 0:01:10]} Ra1 {[%emt 0:02:04]} 28. cxb4 {[%emt 0:04:21]} Rxd1+ {[%emt 0:06:57]} 29. Rxd1 {[%emt 0:00:01]} Rd8 {[%emt 0:01:57]} 30. Nf5+ {[%emt 0:00:53]} Bxf5 {[%emt 0:00:00]} 31. Rxd8 {[%emt 0:00:14]} Kxd8 {[%emt 0:00:07]} 32. exf5 {[%emt 0:00:06]} e4 {[%emt 0:00:12]} 33. Nc1 {[%emt 0:00:21]} Bxb2 {[%emt 0:01:36]} 34. Nxb3 {[%emt 0:00:07]} Kc7 {[%emt 0:01:20]} 35. Nc5 {[%emt 0:01:29]} Kd6 {[%emt 0:00:44]} 36. f6 {[%emt 0:03:00]} Ba3 {[%emt 0:00:02]} 37. Nxe4+ {[%emt 0:00:27]} Ke5 {[%emt 0:00:32]} 38. f3 {[%emt 0:01:02]} Bxb4 {[%emt 0:00:24]} 39. Kf2 {[%emt 0:01:17]} Ba5 {[%emt 0:02:42]} 40. Ke3 {[%emt 0:01:12]} Bb6+ {[%emt 0:00:11]} 41. Kd3 {[%emt 0:00:10]} Ke6 {[%emt 0:00:07]} 42. Kc4 {[%emt 0:01:00]} Ba7 {[%emt 0:02:57]} 43. Kb5 {[%emt 0:00:37]} Bd4 {[%emt 0:00:29]} 44. Kc4 {[%emt 0:01:18]} Ba7 {[%emt 0:01:20]} 45. g4 {[%emt 0:00:13]} Be3 {[%emt 0:00:29]} 46. g3 {[%emt 0:01:21]} Bg1 {[%emt 0:00:41]} 47. f4 {[%emt 0:00:46]} Bb6 {[%emt 0:02:22]} 48. f5+ {[%emt 0:00:43]} Kf7 {[%emt 0:00:40]} 49. Kd5 {[%emt 0:00:13]} Bc7 {[%emt 0:00:18]} 50. Kc6 {[%emt 0:01:01]} Be5 {[%emt 0:00:17]} 51. Kd5 {[%emt 0:00:56]} Bb8 {[%emt 0:00:12]} 52. Nc5 {[%emt 0:00:18]} Bxg3 {[%emt 0:00:20]} 53. Nd7 {[%emt 0:00:24]} Bc7 {[%emt 0:00:17]} 54. Ke4 {[%emt 0:00:26]} Bd8 {[%emt 0:00:23]} 1/2-1/2

[Event "21st Open Gran Hotel Bali-B 2024"]
[Site "Benidorm"]
[Date "2024.11.30"]
[Round "2.10"]
[White "Visoescu, Alexandru-Bogdan"]
[Black "Kvendseth, Thyra"]
[Result "0-1"]
[ECO "E04"]
[WhiteElo "1878"]
[BlackElo "1975"]
[Annotator "NA RC"]
[PlyCount "62"]
[EventDate "2024.11.26"]
[EventType "swiss"]
[EventCountry "ESP"]
[SourceTitle "playchess.com"]
[Source "ChessBase"]
[SourceQuality "1"]
[TimeControl "5400+30"]

1. d4 {[%emt 0:03:23]} Nf6 {[%emt 0:00:07]} 2. c4 {[%emt 0:00:06]} e6 {[%emt 0:00:16]} 3. Nf3 {[%emt 0:00:18]} d5 {[%emt 0:00:13]} 4. g3 {[%emt 0:00:08]} dxc4 {[%emt 0:02:24]} 5. Bg2 {[%emt 0:00:13]} Bd7 {[%emt 0:00:39]} 6. Ne5 {[%emt 0:00:20]} Bc6 {[%emt 0:00:13]} 7. Nxc6 {[%emt 0:00:43]} Nxc6 {[%emt 0:00:07]} 8. Qa4 {[%emt 0:01:52]} Qd7 {[%emt 0:14:30]} 9. Qxc4 {[%emt 0:14:02]} Nxd4 {[%emt 0:18:19]} 10. Bxb7 {[%emt 0:02:29]} Rb8 {[%emt 0:00:45]} 11. Bg2 {[%emt 0:00:44]} Bb4+ {[%emt 0:04:00]} 12. Nd2 {[%emt 0:19:09]} O-O {[%emt 0:11:58]} 13. e3 {[%emt 0:18:24]} Nf5 {[%emt 0:02:05]} 14. O-O {[%emt 0:01:57]} Bxd2 {[%emt 0:02:06]} 15. Rd1 {[%emt 0:00:19]} Nd6 {[%emt 0:00:13]} 16. Qc2 {[%emt 0:09:32]} Bxc1 {[%emt 0:05:05]} 17. Raxc1 {[%emt 0:00:11]} Rfc8 {[%emt 0:01:18]} 18. e4 {[%emt 0:03:51]} e5 {[%emt 0:04:24]} 19. f4 {[%emt 0:00:34]} Qb5 {[%emt 0:03:41]} 20. h3 {[%emt 0:04:37]} h6 {[%emt 0:02:20]} 21. Kh2 {[%emt 0:00:56]} exf4 {[%emt 0:03:52]} 22. gxf4 {[%emt 0:01:30]} Qh5 {[%emt 0:07:02]} 23. Kg1 {[%emt 0:01:16]} Ndxe4 {[%emt 0:09:20]} 24. Bxe4 {[%emt 0:01:03]} Nxe4 {[%emt 0:00:10]} 25. Qxe4 {[%emt 0:00:20]} Re8 {[%emt 0:00:26]} 26. Qd3 {[%emt 0:02:49]} Rxb2 {[%emt 0:01:05]} 27. Rxc7 {[%emt 0:00:30]} Rxa2 {[%emt 0:01:33]} 28. Kh1 {[%emt 0:04:39]} Ra3 {[%emt 0:02:01]} 29. Qxa3 {[%emt 0:02:19]} Qxd1+ {[%emt 0:00:08]} 30. Kg2 {[%emt 0:00:20]} Qd2+ {[%emt 0:00:14]} 31. Kf3 {[%emt 0:00:50]} Qe2+ {[%emt 0:00:07]} 0-1

[Event "21st Open Gran Hotel Bali-B 2024"]
[Site "Benidorm"]
[Date "2024.11.30"]
[Round "2.11"]
[White "Lloret Climent, Miguel"]
[Black "Canto Reig, Javier"]
[Result "1-0"]
[ECO "A90"]
[WhiteElo "1975"]
[BlackElo "1881"]
[Annotator "NA RC"]
[PlyCount "95"]
[EventDate "2024.11.26"]
[EventType "swiss"]
[EventCountry "ESP"]
[SourceTitle "playchess.com"]
[Source "ChessBase"]
[SourceQuality "1"]
[TimeControl "5400+30"]

1. d4 {[%emt 0:00:07]} f5 {[%emt 0:02:06]} 2. g3 {[%emt 0:00:22]} Nf6 {[%emt 0:00:12]} 3. Bg2 {[%emt 0:00:23]} e6 {[%emt 0:00:21]} 4. c4 {[%emt 0:01:16]} Bb4+ {[%emt 0:03:27]} 5. Nd2 {[%emt 0:01:35]} O-O {[%emt 0:03:20]} 6. Ngf3 {[%emt 0:01:40]} Ne4 {[%emt 0:06:00]} 7. O-O {[%emt 0:03:13]} d5 {[%emt 0:11:37]} 8. Qc2 {[%emt 0:05:35]} Nd7 {[%emt 0:03:34]} 9. cxd5 {[%emt 0:04:02]} Nb6 {[%emt 0:04:14]} 10. dxe6 {[%emt 0:02:57]} Nxd2 {[%emt 0:08:46]} 11. Bxd2 {[%emt 0:03:37]} Bxd2 {[%emt 0:05:02]} 12. Qxd2 {[%emt 0:01:11]} Bxe6 {[%emt 0:00:19]} 13. e3 {[%emt 0:02:10]} Kh8 {[%emt 0:05:58]} 14. h4 {[%emt 0:03:25]} c6 {[%emt 0:01:07]} 15. Qc2 {[%emt 0:11:09]} Qe7 {[%emt 0:02:24]} 16. b3 {[%emt 0:02:37]} Rae8 {[%emt 0:00:54]} 17. Rac1 {[%emt 0:00:59]} Bd5 {[%emt 0:01:04]} 18. Qc5 {[%emt 0:02:33]} Qxc5 {[%emt 0:04:02]} 19. Rxc5 {[%emt 0:01:38]} Nd7 {[%emt 0:00:14]} 20. Rc3 {[%emt 0:01:22]} Re7 {[%emt 0:04:49]} 21. Rfc1 {[%emt 0:00:47]} Nf6 {[%emt 0:01:09]} 22. Ne5 {[%emt 0:01:28]} Ne4 {[%emt 0:00:45]} 23. Bxe4 {[%emt 0:03:42]} fxe4 {[%emt 0:00:18]} 24. b4 {[%emt 0:01:53]} a6 {[%emt 0:00:52]} 25. a4 {[%emt 0:00:36]} g6 {[%emt 0:00:39]} 26. Rb1 {[%emt 0:00:42]} Rc8 {[%emt 0:05:58]} 27. b5 {[%emt 0:03:16]} axb5 {[%emt 0:00:14]} 28. axb5 {[%emt 0:07:11]} Rec7 {[%emt 0:00:11]} 29. b6 {[%emt 0:01:06]} Re7 {[%emt 0:00:23]} 30. Ra1 {[%emt 0:01:41]} Kg7 {[%emt 0:01:13]} 31. Ra5 {[%emt 0:00:55]} Ree8 {[%emt 0:01:52]} 32. Ra7 {[%emt 0:00:30]} Re7 {[%emt 0:00:46]} 33. Ra5 {[%emt 0:03:49]} Ree8 {[%emt 0:01:46]} 34. Kg2 {[%emt 0:00:59]} Red8 {[%emt 0:03:07]} 35. Ra7 {[%emt 0:02:33]} c5 {[%emt 0:03:21]} 36. dxc5 {[%emt 0:04:30]} Kf6 {[%emt 0:00:14]} 37. Ng4+ {[%emt 0:01:30]} Ke6 {[%emt 0:00:32]} 38. Ra1 {[%emt 0:02:29]} Bc6 {[%emt 0:03:18]} 39. Kf1 {[%emt 0:01:54]} Rd2 {[%emt 0:00:41]} 40. Rac1 {[%emt 0:03:06]} Bb5+ {[%emt 0:04:00]} 41. Kg2 {[%emt 0:00:39]} Be2 {[%emt 0:03:21]} 42. Nh2 {[%emt 0:00:41]} Kd5 {[%emt 0:01:02]} 43. c6 {[%emt 0:02:03]} bxc6 {[%emt 0:04:35]} 44. b7 {[%emt 0:01:10]} Rf8 {[%emt 0:01:15]} 45. Rc5+ {[%emt 0:00:29]} Kd6 {[%emt 0:00:16]} 46. Rxc6+ {[%emt 0:00:22]} Kd7 {[%emt 0:00:09]} 47. Rc7+ {[%emt 0:06:51]} Kd6 {[%emt 0:00:17]} 48. Rc8 {[%emt 0:00:46]} 1-0

[Event "21st Open Gran Hotel Bali-B 2024"]
[Site "Benidorm"]
[Date "2024.11.30"]
[Round "2.12"]
[White "Blondel, Jerome"]
[Black "Balloglu, Piro"]
[Result "1/2-1/2"]
[ECO "D02"]
[WhiteElo "1871"]
[BlackElo "1972"]
[Annotator "NA RC"]
[PlyCount "77"]
[EventDate "2024.11.26"]
[EventType "swiss"]
[EventCountry "ESP"]
[SourceTitle "playchess.com"]
[Source "ChessBase"]
[SourceQuality "1"]
[TimeControl "5400+30"]

1. d4 {[%emt 0:00:02]} d5 {[%emt 0:04:03]} 2. Nf3 {[%emt 0:00:34]} Nf6 {[%emt 0:00:29]} 3. Bf4 {[%emt 0:00:05]} e6 {[%emt 0:02:32]} 4. e3 {[%emt 0:00:16]} c5 {[%emt 0:01:32]} 5. c3 {[%emt 0:04:21]} Nc6 {[%emt 0:05:29]} 6. Nbd2 {[%emt 0:00:27]} Bd6 {[%emt 0:02:29]} 7. Bg3 {[%emt 0:10:12]} O-O {[%emt 0:03:51]} 8. Bd3 {[%emt 0:00:04]} Qe7 {[%emt 0:03:12]} 9. Ne5 {[%emt 0:02:42]} h6 {[%emt 0:07:47]} 10. f4 {[%emt 0:03:32]} Bd7 {[%emt 0:06:27]} 11. Bh4 {[%emt 0:04:01]} Bc8 {[%emt 0:07:49]} 12. Ng4 {[%emt 0:13:54]} cxd4 {[%emt 0:05:58]} 13. Bxf6 {[%emt 0:01:12]} gxf6 {[%emt 0:02:08]} 14. Nxh6+ {[%emt 0:00:11]} Kg7 {[%emt 0:43:44]} 15. Qg4+ {[%emt 0:00:13]} Kh8 {[%emt 0:00:00]} 16. Qh5 {[%emt 0:01:10]} Kg7 {[%emt 0:00:00]} 17. Nxf7 {[%emt 0:02:01]} f5 {[%emt 0:00:00]} 18. Nxd6 {[%emt 0:00:39]} Qxd6 {[%emt 0:00:00]} 19. Qg5+ {[%emt 0:02:46]} Kf7 {[%emt 0:00:00]} 20. Be2 {[%emt 0:01:07]} Ke8 {[%emt 0:00:00]} 21. exd4 {[%emt 0:01:24]} Ne7 {[%emt 0:00:00]} 22. g3 {[%emt 0:07:23]} Bd7 {[%emt 0:00:00]} 23. Qg7 {[%emt 0:05:08]} Rg8 {[%emt 0:00:00]} 24. Qe5 {[%emt 0:03:11]} Qb6 {[%emt 0:00:00]} 25. b3 {[%emt 0:08:57]} Rc8 {[%emt 0:00:00]} 26. c4 {[%emt 0:01:38]} Qb4 {[%emt 0:00:00]} 27. Qe3 {[%emt 0:03:30]} Kd8 {[%emt 0:00:00]} 28. a3 {[%emt 0:02:18]} Qa5 {[%emt 0:00:00]} 29. b4 {[%emt 0:01:40]} Qa4 {[%emt 0:00:00]} 30. c5 {[%emt 0:01:21]} Nc6 {[%emt 0:00:00]} 31. Kf2 {[%emt 0:00:17]} Qc2 {[%emt 0:00:00]} 32. Rhb1 {[%emt 0:01:41]} Rh8 {[%emt 0:01:53]} 33. h4 {[%emt 0:00:18]} Qa4 {[%emt 0:01:46]} 34. Bd1 {[%emt 0:00:18]} Qa6 {[%emt 0:01:14]} 35. b5 {[%emt 0:00:35]} Qa5 {[%emt 0:00:41]} 36. bxc6 {[%emt 0:00:14]} Bxc6 {[%emt 0:00:36]} 37. Nb3 {[%emt 0:01:40]} Qc7 {[%emt 0:00:41]} 38. Qxe6 {[%emt 0:00:32]} Qg7 {[%emt 0:01:23]} 39. Qxf5 {[%emt 0:01:00]} 1/2-1/2